fUST/lending_fUST_20250226
["ID","MTS","AMOUNT","RATE_DAILY","PERIOD"]
[354494894,1740537036189,-500.0,0.00038898,2]
[354494895,1740537036198,-500.0,0.00038898,2]
[354494896,1740537036207,-500.0,0.00038898,2]
[354494897,1740537036216,-521.18976712,0.00038898,2]
[354494898,1740537036226,-500.0,0.00038898,2]
[354494899,1740537036235,-500.0,0.00038898,2]
[354494900,1740537036244,-500.0,0.00038898,2]
[354494901,1740537036253,-500.0,0.00038898,2]
[354494902,1740537036264,-500.0,0.00038898,2]
[354494903,1740537036273,-748.7,0.00038898,2]
[354494904,1740537036282,-501.70248269,0.00038898,2]
[354494905,1740537036290,-501.14345234,0.00038898,2]
[354494906,1740537036298,-623.9,0.00038898,2]
[354494907,1740537036308,-500.0,0.00038898,2]
[354494908,1740537036317,-1948.39,0.00038898,2]
[354494909,1740537036327,-500.0,0.00038898,2]
[354494910,1740537036336,-500.0,0.00038898,2]
[354494911,1740537036345,-500.83716585,0.00038898,2]
[354494912,1740537036355,-910.92,0.00038898,2]
[354494913,1740537036364,-500.0,0.00038898,2]
[354494914,1740537036373,-500.0,0.00038898,2]
[354494915,1740537036382,-500.0,0.00038898,2]
[354494916,1740537036392,-500.68210696,0.00038898,2]
[354494917,1740537036401,-602.37,0.00038898,2]
[354494918,1740537036409,-500.0,0.00038898,2]
[354494919,1740537036418,-500.0,0.00038898,2]
[354494920,1740537036426,-500.0,0.00038898,2]
[354494921,1740537036434,-500.0,0.00038898,2]
[354494922,1740537036443,-500.0,0.00038898,2]
[354494923,1740537036452,-500.0,0.00038898,2]
[354494924,1740537036461,-500.0,0.00038898,2]
[354494925,1740537036470,-529.47386097,0.00038898,2]
[354494926,1740537036478,-500.0,0.00038898,2]
[354494927,1740537036487,-452.41403218,0.00038898,2]
[354494928,1740537036495,-500.0,0.00038898,2]
[354494929,1740537036505,-378.6603852,0.00038898,2]
[354494930,1740537036513,-573.24,0.00038898,2]
[354494931,1740537036523,-500.67217115,0.00038898,2]
[354494932,1740537036531,-500.0,0.00038898,2]
[354494933,1740537036540,-507.69001637,0.00038898,2]
[354494934,1740537036549,-500.0,0.00038898,2]
[354494935,1740537036558,-500.0,0.00038898,2]
[354494936,1740537036567,-677.04,0.00038898,2]
[354494937,1740537036578,-508.57,0.00038898,2]
[354494938,1740537036587,-500.0,0.00038898,2]
[354494939,1740537036596,-500.0,0.00038898,2]
[354494940,1740537036605,-500.0,0.00038898,2]
[354494941,1740537036613,-500.0,0.00038898,2]
[354494942,1740537036623,-500.0,0.00038898,2]
[354494943,1740537036633,-500.0,0.00038898,2]
[354494944,1740537036643,-759.76,0.00038898,2]
[354494945,1740537036652,-500.0,0.00038898,2]
[354494946,1740537036662,-500.0,0.00038898,2]
[354494947,1740537036671,-501.11505285,0.00038898,2]
[354494948,1740537036680,-501.25018416,0.00038898,2]
[354494949,1740537036689,-500.0,0.00038898,2]
[354494950,1740537036699,-500.0,0.00038898,2]
[354494951,1740537036708,-501.20276176,0.00038898,2]
[354494952,1740537036717,-500.0,0.00038898,2]
[354494953,1740537036727,-500.0,0.00038898,2]
[354494954,1740537036736,-500.0,0.00038898,2]
[354494955,1740537036745,-597.99,0.00038898,2]
[354494956,1740537036754,-500.0,0.00038898,2]
[354494957,1740537036764,-500.0,0.00038898,2]
[354494958,1740537036773,-500.0,0.00038898,2]
[354494959,1740537036783,-753.25,0.00038898,2]
[354494960,1740537036793,-500.0,0.00038898,2]
[354494961,1740537036802,-500.0,0.00038898,2]
[354494962,1740537036812,-500.0,0.00038898,2]
[354494963,1740537036821,-500.775095,0.00038898,2]
[354494964,1740537036831,-533.70090437,0.00038898,2]
[354494965,1740537036840,-500.0,0.00038898,2]
[354494966,1740537036849,-500.0,0.00038898,2]
[354494967,1740537036858,-500.0,0.00038898,2]
[354494968,1740537036867,-500.0,0.00038898,2]
[354494969,1740537036876,-500.0,0.00038898,2]
[354494970,1740537036885,-500.0,0.00038898,2]
[354494971,1740537036895,-330.35959419,0.00038898,2]
[354494972,1740537036904,-500.0,0.00038898,2]
[354494973,1740537036913,-500.0,0.00038898,2]
[354494974,1740537036923,-245.9810937,0.00038898,2]
[354494975,1740537036932,-500.0,0.00038898,2]
[354494976,1740537036942,-500.0,0.00038898,2]
[354494977,1740537036952,-501.4540845,0.00038898,2]
[354494978,1740537036961,-500.0,0.00038898,2]
[354494979,1740537036971,-500.0,0.00038898,2]
[354494980,1740537036981,-500.0,0.00038898,2]
[354494981,1740537036990,-500.0,0.00038898,2]
[354494982,1740537037000,-500.0,0.00038898,2]
[354494983,1740537037009,-500.0,0.00038898,2]
[354494984,1740537037019,-500.0,0.00038898,2]
[354494985,1740537037028,-500.0,0.00038898,2]
[354494986,1740537037037,-355.47764132,0.00038898,2]
[354494987,1740537037045,-500.0,0.00038898,2]
[354494988,1740537037055,-318.0916926,0.00038898,2]
[354494989,1740537037064,-500.0,0.00038898,2]
[354494990,1740537037074,-500.0,0.00038898,2]
[354494991,1740537037083,-500.0,0.00038898,2]
[354494992,1740537037092,-500.0,0.00038898,2]
[354494993,1740537037101,-501.20620743,0.00038898,2]
[354494994,1740537037110,-11241.35,0.00038898,2]
[354494995,1740537037118,-151.0,0.00038898,14]
[354494996,1740537037143,-501.12807965,0.00038898,2]
[354494997,1740537037153,-641.93,0.00038898,2]
[354494998,1740537037162,-500.0,0.00038898,2]
[354494999,1740537037171,-777.8,0.00038898,2]
[354495000,1740537037181,-777.8,0.00038898,2]
[354495001,1740537037192,-777.8,0.00038898,2]
[354495002,1740537037202,-777.8,0.00038898,2]
[354495003,1740537037212,-777.8,0.00038898,2]
[354495004,1740537037222,-777.8,0.00038898,2]
[354495005,1740537037232,-777.8,0.00038898,2]
[354495006,1740537037241,-500.0,0.00038898,2]
[354495007,1740537037251,-500.0,0.00038898,2]
[354495008,1740537037261,-500.0,0.00038898,2]
[354495009,1740537037273,-500.0,0.00038898,2]
[354495010,1740537037283,-500.0,0.00038898,2]
[354495011,1740537037293,-250.71038083,0.00038898,2]
[354495012,1740537037303,-500.0,0.00038898,2]
[354495013,1740537037313,-500.0,0.00038898,2]
[354495014,1740537037324,-500.0,0.00038898,2]
[354495015,1740537037334,-500.0,0.00038898,2]
[354495016,1740537037343,-526.53,0.00038898,2]
[354495017,1740537037352,-500.0,0.00038898,2]
[354495018,1740537037362,-500.0,0.00038898,2]
[354495019,1740537037372,-1891.88,0.00038898,2]
[354495020,1740537037381,-500.0,0.00038898,2]
[354495021,1740537037390,-500.0,0.00038898,2]
[354495022,1740537037400,-501.07923221,0.00038898,2]
[354495023,1740537037409,-500.0,0.00038898,2]
[354495024,1740537037419,-500.0,0.00038898,2]
[354495025,1740537037429,-500.0,0.00038898,2]
[354495026,1740537037439,-878.07,0.00038898,2]
[354495027,1740537037449,-610.07,0.00038898,2]
[354495028,1740537037458,-500.90195403,0.00038898,2]
[354495029,1740537037468,-184579.91953727,0.00038898,2]
[354495030,1740537037491,-937.04531065,0.00038898,2]
[354495031,1740537037504,-1765.91338525,0.00038898,2]
[354495032,1740537037516,-7603.84176683,0.00038898,2]
[354495033,1740537037525,-500.0,0.00038898,2]
[354495034,1740537037534,-152.851453,0.00038898,14]
[354495035,1740537037544,-500.0,0.00038898,2]
[354495036,1740537037553,-500.0,0.00038898,2]
[354495037,1740537037562,-500.0,0.00038898,2]
[354495038,1740537037571,-500.0,0.00038898,2]
[354495039,1740537037581,-179.6672746,0.00038898,2]
[354495040,1740537037603,-320.3327254,0.00038898,2]
[354495041,1740537037612,-500.0,0.00038898,2]
[354495042,1740537037621,-500.0,0.00038898,2]
[354495043,1740537037630,-3804.92,0.00038898,2]
[354495044,1740537037639,-151.0,0.00038898,14]
[354495045,1740537037649,-440.1873396,0.00038898,2]
[354495046,1740537037661,-59.8126604,0.00038898,2]
[354495047,1740537037670,-171.156663,0.00038898,14]
[354495048,1740537037679,-171.156663,0.00038898,14]
[354495049,1740537037689,-501.43762857,0.00038898,2]
[354495050,1740537037698,-1927.84,0.00038898,2]
[354495051,1740537037707,-171.156663,0.00038898,14]
[354495052,1740537037718,-171.156663,0.00038898,14]
[354495053,1740537037727,-697.07,0.00038898,2]
[354495054,1740537037736,-500.0,0.00038898,2]
[354495055,1740537037745,-729.97,0.00038898,2]
[354495056,1740537037755,-514.16278671,0.00038898,2]
[354495057,1740537037764,-500.0,0.00038898,2]
[354495058,1740537037773,-500.0,0.00038898,2]
[354495059,1740537037782,-1200.47,0.00038898,2]
[354495060,1740537037791,-184.63335996,0.00038898,2]
[354495073,1740537038517,-429.67258371,0.00038898,2]
[354495075,1740537038527,-500.0,0.00038898,2]
[354495077,1740537038537,-185.96297805,0.00038898,2]
[354495078,1740537038549,-314.03702195,0.00038898,2]
[354495079,1740537038559,-1736.91,0.00038898,2]
[354495080,1740537038568,-500.0,0.00038898,2]
[354495081,1740537038578,-515.29,0.00038898,2]
[354495082,1740537038587,-500.0,0.00038898,2]
[354495083,1740537038596,-151.0,0.00038898,14]
[354495084,1740537038606,-204.96060906,0.00038898,14]
[354495085,1740537038615,-760.77,0.00038898,2]
[354495086,1740537038625,-500.0,0.00038898,2]
[354495087,1740537038634,-151.0,0.00038898,14]
[354495088,1740537038643,-661.75,0.00038898,2]
[354495089,1740537038652,-151.0,0.00038898,14]
[354495091,1740537038662,-151.0,0.00038898,14]
[354495092,1740537038671,-661.75,0.00038898,2]
[354495093,1740537038680,-661.75,0.00038898,2]
[354495094,1740537038688,-500.0,0.00038898,2]
[354495095,1740537038697,-661.75,0.00038898,2]
[354495096,1740537038707,-661.75,0.00038898,2]
[354495098,1740537038716,-661.75,0.00038898,2]
[354495100,1740537038726,-661.75,0.00038898,2]
[354495101,1740537038735,-500.0,0.00038898,2]
[354495102,1740537038745,-500.0,0.00038898,2]
[354495103,1740537038754,-1009.56,0.00038898,2]
[354495104,1740537038764,-500.0,0.00038898,2]
[354495105,1740537038774,-500.0,0.00038898,2]
[354495106,1740537038783,-500.0,0.00038898,2]
[354495107,1740537038793,-500.0,0.00038898,2]
[354495108,1740537038802,-500.0,0.00038898,2]
[354495109,1740537038812,-500.0,0.00038898,2]
[354495110,1740537038822,-500.0,0.00038898,2]
[354495111,1740537038833,-500.0,0.00038898,2]
[354495112,1740537038843,-500.38668989,0.00038898,2]
[354495113,1740537038852,-1296.98,0.00038898,2]
[354495114,1740537038862,-576.31973744,0.00038898,2]
[354495115,1740537038872,-508.23786644,0.00038898,2]
[354495116,1740537038882,-28330.32,0.00038898,2]
[354495117,1740537038894,-500.0,0.00038898,2]
[354495118,1740537038903,-500.0,0.00038898,2]
[354495119,1740537038912,-500.0,0.00038898,2]
[354495120,1740537038921,-500.0,0.00038898,2]
[354495121,1740537038930,-151.0,0.00038898,14]
[354495122,1740537038941,-151.0,0.00038898,14]
[354495123,1740537038950,-508.85961709,0.00038898,2]
[354495124,1740537038959,-500.0,0.00038898,2]
[354495125,1740537038968,-500.0,0.00038898,2]
[354495126,1740537038977,-508.84025942,0.00038898,2]
[354495127,1740537038986,-3156.19,0.00038898,2]
[354495128,1740537038995,-500.0,0.00038898,2]
[354495129,1740537039004,-501.23317224,0.00038898,2]
[354495130,1740537039013,-530.43384094,0.00038898,2]
[354495131,1740537039022,-500.0,0.00038898,2]
[354495132,1740537039031,-500.0,0.00038898,2]
[354495133,1740537039039,-500.0,0.00038898,2]
[354495134,1740537039049,-501.31318235,0.00038898,2]
[354495135,1740537039058,-839.01,0.00038898,2]
[354495136,1740537039067,-151.0,0.00038898,14]
[354495137,1740537039077,-151.0,0.00038898,14]
[354495138,1740537039086,-632.18,0.00038898,2]
[354495139,1740537039095,-1422.34,0.00038899,2]
[354495140,1740537039103,-1112.32,0.00038899,2]
[354495141,1740537039112,-500.0,0.00038899,2]
[354495142,1740537039121,-500.0,0.00038899,2]
[354495143,1740537039130,-500.0,0.00038899,2]
[354495144,1740537039139,-500.0,0.00038899,2]
[354495145,1740537039148,-500.0,0.00038899,2]
[354495146,1740537039157,-1166.5,0.00038899,2]
[354495147,1740537039166,-502.25216085,0.00038899,2]
[354495148,1740537039175,-166.317576,0.00038899,2]
[354495149,1740537039185,-578.16,0.00038899,2]
[354495150,1740537039197,-2406.03,0.00038899,2]
[354495151,1740537039207,-502.22681991,0.00038899,2]
[354495152,1740537039216,-500.0,0.00038899,2]
[354495153,1740537039227,-500.0,0.00038899,2]
[354495154,1740537039236,-1914.67,0.00038899,2]
[354495155,1740537039245,-500.0,0.00038899,2]
[354495156,1740537039255,-500.0,0.00038899,2]
[354495157,1740537039264,-500.0,0.00038899,2]
[354495158,1740537039274,-500.36696149,0.00038899,2]
[354495159,1740537039284,-1380.01,0.00038899,2]
[354495160,1740537039293,-500.0,0.00038899,2]
[354495161,1740537039302,-501.23302305,0.00038899,2]
[354495162,1740537039311,-500.0,0.00038899,2]
[354495163,1740537039320,-500.0,0.00038899,2]
[354495164,1740537039330,-1025.71,0.00038899,2]
[354495165,1740537039339,-1222.97,0.00038899,2]
[354495166,1740537039347,-500.0,0.00038899,2]
[354495167,1740537039356,-151.0,0.00038899,14]
[354495168,1740537039365,-1406.88,0.00038899,2]
[354495169,1740537039374,-502.01296324,0.00038899,2]
[354495170,1740537039382,-500.0,0.00038899,2]
[354495171,1740537039391,-151.0,0.00038899,14]
[354495172,1740537039401,-501.50531663,0.00038899,2]
[354495173,1740537039411,-500.0,0.00038899,2]
[354495174,1740537039420,-500.0,0.00038899,2]
[354495175,1740537039430,-500.0,0.00038899,2]
[354495176,1740537039439,-500.0,0.00038899,2]
[354495177,1740537039448,-872.66,0.00038899,2]
[354495178,1740537039458,-500.0,0.00038899,2]
[354495179,1740537039467,-501.64121407,0.00038899,2]
[354495180,1740537039477,-1252.46,0.00038899,2]
[354495181,1740537039486,-500.0,0.00038899,2]
[354495182,1740537039495,-500.0,0.00038899,2]
[354495183,1740537039504,-556.34,0.00038899,2]
[354495184,1740537039513,-500.0,0.00038899,2]
[354495185,1740537039522,-615.09,0.00038899,2]
[354495186,1740537039530,-500.0,0.00038899,2]
[354495187,1740537039539,-500.0,0.00038899,2]
[354495188,1740537039549,-500.0,0.00038899,2]
[354495189,1740537039558,-2676.82,0.00038899,2]
[354495190,1740537039567,-500.0,0.00038899,2]
[354495191,1740537039578,-500.0,0.00038899,2]
[354495192,1740537039588,-500.0,0.00038899,2]
[354495193,1740537039597,-2308.8,0.00038899,2]
[354495194,1740537039607,-2761.04,0.00038899,2]
[354495195,1740537039617,-500.0,0.00038899,2]
[354495196,1740537039626,-500.0,0.00038899,2]
[354495197,1740537039635,-171.156663,0.00038899,14]
[354495198,1740537039645,-500.0,0.00038899,2]
[354495199,1740537039655,-171.156663,0.00038899,14]
[354495200,1740537039664,-563.51,0.00038899,2]
[354495201,1740537039673,-1008.0,0.00038899,2]
[354495202,1740537039683,-500.0,0.00038899,2]
[354495203,1740537039693,-511.03589474,0.00038899,2]
[354495204,1740537039702,-1259.77,0.00038899,2]
[354495205,1740537039713,-500.0,0.00038899,2]
[354495206,1740537039722,-793.63,0.00038899,2]
[354495207,1740537039731,-151.0,0.0003898,14]
[354495208,1740537039739,-151.0,0.0003898,14]
[354495209,1740537039748,-151.0,0.0003898,14]
[354495210,1740537039758,-11667.0257546,0.0003898,3]
[354495211,1740537039767,-347.97191297,0.0003899,120]
[354495212,1740537039780,-4864.02808703,0.0003899,120]
[354495213,1740537039789,-5212.0,0.0003899,120]
[354495214,1740537039798,-5212.0,0.0003899,120]
[354495215,1740537039806,-6777.00000001,0.0003899,120]
[354495216,1740537039815,-171.156663,0.0003899,14]
[354495217,1740537039825,-171.156663,0.0003899,14]
[354495218,1740537039834,-11667.0257546,0.00039064,3]
[354495219,1740537039843,-500.0,0.00039064,2]
[354495220,1740537039851,-500.0,0.00039064,2]
[354495221,1740537039861,-500.0,0.00039064,2]
[354495222,1740537039871,-777.8,0.00039064,2]
[354495223,1740537039881,-777.8,0.00039064,2]
[354495224,1740537039890,-777.8,0.00039064,2]
[354495225,1740537039899,-661.75,0.00039064,2]
[354495226,1740537039907,-661.75,0.00039064,2]
[354495227,1740537039914,-661.75,0.00039064,2]
[354495228,1740537039921,-151.0,0.00039065,14]
[354495229,1740537039928,-500.0,0.00039073,2]
[354495230,1740537039935,-777.8,0.00039073,2]
[354495231,1740537039941,-511.69057716,0.00039074,2]
[354495232,1740537039948,-499.8089248,0.00039074,2]
[354495233,1740537039955,-777.8,0.00039074,2]
[354495234,1740537039963,-777.8,0.00039074,2]
[354495235,1740537039972,-777.8,0.00039074,2]
[354495236,1740537039981,-777.8,0.00039074,2]
[354495237,1740537039991,-777.8,0.00039074,2]
[354495245,1740537040229,-777.8,0.00039074,2]
[354495246,1740537040240,-777.8,0.00039074,2]
[354495247,1740537040250,-777.8,0.00039074,2]
[354495248,1740537040260,-778.03663817,0.00039074,2]
[354495249,1740537040270,-661.75,0.00039074,2]
[354495250,1740537040280,-661.75,0.00039074,2]
[354495251,1740537040290,-661.75,0.00039074,2]
[354495252,1740537040300,-661.75,0.00039074,2]
[354495253,1740537040309,-661.75,0.00039074,2]
[354495254,1740537040320,-334.26239558,0.00039074,2]
[354495255,1740537040334,-327.48760442,0.00039074,2]
[354495256,1740537040344,-661.84138016,0.00039074,2]
[354495257,1740537040354,-503.31955858,0.00039151,2]
[354495258,1740537040362,-500.0,0.00039151,2]
[354495259,1740537040371,-227.9982558,0.00039151,2]
[354495260,1740537040380,-533.07,0.00039151,2]
[354495261,1740537040389,-500.0,0.00039151,2]
[354495262,1740537040398,-1150.4,0.00039151,2]
[354495263,1740537040407,-500.0,0.00039151,2]
[354495264,1740537040417,-151.0,0.00039152,14]
[354495265,1740537040427,-171.156663,0.00039153,14]
[354495266,1740537040437,-171.156663,0.00039153,14]
[354495267,1740537040447,-505.06208239,0.0003916,2]
[354495268,1740537040456,-6193.21,0.0003916,2]
[354495269,1740537040466,-500.0,0.0003916,2]
[354495270,1740537040475,-2018.05,0.0003916,2]
[354495271,1740537040485,-1377.46,0.0003916,2]
[354495272,1740537040495,-1408.15,0.0003916,2]
[354495273,1740537040505,-500.0,0.0003916,2]
[354495274,1740537040515,-336.59804915,0.00039161,5]
[354495275,1740537040524,-24910.63888772,0.00039161,5]
[354495276,1740537040534,-500.0,0.00039161,2]
[354495277,1740537040543,-2410.14,0.00039161,2]
[354495278,1740537040553,-500.0,0.00039161,2]
[354495279,1740537040562,-3580.14,0.00039161,2]
[354495280,1740537040572,-1817.0,0.00039161,2]
[354495281,1740537040583,-552.15,0.00039161,2]
[354495282,1740537040593,-749.83,0.00039161,2]
[354495283,1740537040602,-942.51,0.00039161,2]
[354495284,1740537040612,-1328.48,0.00039161,2]
[354495285,1740537040623,-6277.48,0.00039161,2]
[354495286,1740537040632,-14199.6,0.00039161,2]
[354495287,1740537040642,-2600.89,0.00039161,2]
[354495288,1740537040652,-596.77,0.00039161,2]
[354495289,1740537040661,-1870.51,0.00039161,2]
[354495290,1740537040670,-500.0,0.00039161,2]
[354495291,1740537040680,-4394.18,0.00039161,2]
[354495292,1740537040690,-2761.05762891,0.00039161,2]
[354495294,1740537040922,-11973.07237109,0.00039161,2]
[354495295,1740537040931,-2128.09,0.00039161,2]
[354495296,1740537040940,-500.0,0.00039162,2]
[354495297,1740537040949,-1721.81,0.00039162,2]
[354495298,1740537040958,-500.10399814,0.00039162,2]
[354495299,1740537040968,-500.0,0.00039162,2]
[354495301,1740537040976,-500.0,0.00039162,2]
[354495303,1740537040986,-1799.75,0.00039162,2]
[354495304,1740537040994,-500.0,0.00039162,2]
[354495305,1740537041003,-2824.95,0.00039162,2]
[354495306,1740537041012,-500.0,0.00039162,2]
[354495307,1740537041022,-501.89111182,0.00039162,2]
[354495308,1740537041031,-500.0,0.00039162,2]
[354495309,1740537041040,-865.41,0.00039162,2]
[354495310,1740537041049,-633.49,0.00039162,2]
[354495311,1740537041058,-500.0,0.00039162,2]
[354495312,1740537041067,-2159.31,0.00039162,2]
[354495313,1740537041076,-305.08534928,0.00039162,2]
[354495314,1740537041086,-689.69,0.00039162,2]
[354495315,1740537041095,-1096.39,0.00039162,2]
[354495316,1740537041104,-500.0,0.00039162,2]
[354495317,1740537041113,-500.0,0.00039162,2]
[354495318,1740537041121,-500.0,0.00039162,2]
[354495319,1740537041131,-500.27647179,0.00039162,2]
[354495320,1740537041139,-1170.12,0.00039162,2]
[354495321,1740537041148,-500.67173278,0.00039162,2]
[354495322,1740537041157,-745.29,0.00039162,2]
[354495323,1740537041167,-10392.93,0.00039162,2]
[354495324,1740537041176,-6356.97,0.00039162,2]
[354495325,1740537041185,-1382.34,0.00039162,2]
[354495326,1740537041200,-500.0,0.00039162,2]
[354495327,1740537041208,-1189.84,0.00039162,2]
[354495328,1740537041217,-11321.53,0.00039162,2]
[354495329,1740537041226,-500.0,0.00039162,2]
[354495330,1740537041237,-500.0,0.00039162,2]
[354495331,1740537041247,-500.0,0.00039162,2]
[354495332,1740537041256,-500.0,0.00039162,2]
[354495333,1740537041265,-500.0,0.00039162,2]
[354495334,1740537041275,-501.68695419,0.00039162,2]
[354495335,1740537041284,-2144.97,0.00039162,2]
[354495336,1740537041293,-6070.65,0.00039162,2]
[354495337,1740537041302,-11550.25,0.00039162,2]
[354495338,1740537041311,-613.44,0.00039162,2]
[354495339,1740537041321,-2966.55,0.00039162,2]
[354495340,1740537041330,-627.06,0.00039162,2]
[354495341,1740537041340,-1403.13,0.00039162,2]
[354495342,1740537041349,-2605.22,0.00039162,2]
[354495343,1740537041359,-501.42278791,0.00039162,2]
[354495344,1740537041368,-1468.04,0.00039162,2]
[354495345,1740537041378,-1321.49,0.00039162,2]
[354495346,1740537041387,-502.97037307,0.00039162,2]
[354495347,1740537041397,-1122.96,0.00039162,2]
[354495348,1740537041407,-171.156663,0.00039162,14]
[354495349,1740537041416,-171.156663,0.00039162,14]
[354495350,1740537041426,-2054.78,0.00039162,2]
[354495351,1740537041436,-600.66,0.00039162,2]
[354495352,1740537041446,-502.26757043,0.00039162,2]
[354495353,1740537041455,-3189.05,0.00039162,2]
[354495354,1740537041464,-559.52745339,0.00039162,2]
[354495355,1740537041473,-500.60989002,0.00039162,2]
[354495356,1740537041483,-500.0,0.00039162,2]
[354495357,1740537041492,-500.0,0.00039162,2]
[354495358,1740537041502,-500.0,0.00039162,2]
[354495359,1740537041511,-1352.37,0.00039162,2]
[354495360,1740537041519,-502.05399585,0.00039162,2]
[354495361,1740537041530,-751.12,0.00039162,2]
[354495362,1740537041539,-500.0,0.00039162,2]
[354495363,1740537041548,-500.0,0.00039162,2]
[354495364,1740537041557,-500.0,0.00039162,2]
[354495365,1740537041566,-591.17,0.00039162,2]
[354495366,1740537041576,-602.1,0.00039162,2]
[354495367,1740537041585,-500.0,0.00039162,2]
[354495368,1740537041594,-20299.0,0.00039162,2]
[354495369,1740537041603,-1111.35,0.00039162,2]
[354495370,1740537041612,-6442.89,0.00039162,2]
[354495371,1740537041621,-1937.34,0.00039162,2]
[354495372,1740537041631,-1002.02,0.00039162,2]
[354495373,1740537041640,-1803.47,0.00039162,2]
[354495374,1740537041649,-500.0,0.00039162,2]
[354495375,1740537041658,-167.11232,0.00039162,14]
[354495376,1740537041667,-2648.80953102,0.00039162,2]
[354495377,1740537041679,-194.51046898,0.00039162,2]
[354495378,1740537041688,-500.0,0.00039162,2]
[354495379,1740537041697,-527.43,0.00039162,2]
[354495380,1740537041707,-3626.72,0.00039162,2]
[354495381,1740537041716,-500.0,0.00039162,2]
[354495382,1740537041725,-234.3355643,0.00039162,2]
[354495383,1740537041735,-500.0,0.00039162,2]
[354495384,1740537041744,-538.18197269,0.00039162,2]
[354495385,1740537041754,-94.92431307,0.00039162,2]
[354495386,1740537041765,-405.07568693,0.00039162,2]
[354495387,1740537041774,-539.66,0.00039162,2]
[354495388,1740537041783,-4328.0,0.0003917,120]
[354495389,1740537041792,-500.0,0.00039172,2]
[354495390,1740537041803,-500.0,0.00039172,2]
[354495391,1740537041812,-501.19987772,0.00039172,2]
[354495392,1740537041821,-500.0,0.00039172,2]
[354495393,1740537041831,-501.56522461,0.00039172,2]
[354495394,1740537041840,-500.0,0.00039172,2]
[354495395,1740537041848,-500.0,0.00039172,2]
[354495396,1740537041857,-500.0,0.00039172,2]
[354495397,1740537041867,-536.47573339,0.00039172,2]
[354495398,1740537041877,-500.0,0.00039172,2]
[354495399,1740537041886,-500.0,0.00039172,2]
[354495400,1740537041895,-854.38,0.00039172,2]
[354495401,1740537041905,-509.81340826,0.00039172,2]
[354495402,1740537041913,-500.0,0.00039172,2]
[354495403,1740537041922,-500.91442872,0.00039172,2]
[354495404,1740537041931,-500.0,0.00039172,2]
[354495405,1740537041940,-500.0,0.00039172,2]
[354495406,1740537041949,-941.22,0.00039172,2]
[354495407,1740537041958,-500.0,0.00039172,2]
[354495408,1740537041966,-500.0,0.00039172,2]
[354495409,1740537041975,-500.0,0.00039172,2]
[354495410,1740537041984,-500.0,0.00039172,2]
[354495411,1740537041993,-500.0,0.00039172,2]
[354495412,1740537042002,-500.0,0.00039172,2]
[354495413,1740537042011,-500.0,0.00039172,2]
[354495414,1740537042020,-272.69304006,0.00039172,2]
[354495415,1740537042031,-227.30695994,0.00039172,2]
[354495416,1740537042040,-500.0,0.00039172,2]
[354495417,1740537042049,-507.34441035,0.00039172,2]
[354495418,1740537042058,-548.7727983,0.00039172,2]
[354495419,1740537042067,-500.0,0.00039172,2]
[354495420,1740537042077,-500.61034041,0.00039172,2]